fUSD/lending_fUSD_20250302
["ID","MTS","AMOUNT","RATE_DAILY","PERIOD"]
[355117563,1740918186151,-2400.58,0.000443,36]
[355117564,1740918186179,-2400.58,0.000443,36]
[355117565,1740918186206,-2400.58,0.000443,36]
[355117566,1740918186234,-2400.58,0.000443,36]
[355117567,1740918186262,-2400.58,0.000443,36]
[355117568,1740918186290,-2400.58,0.000443,36]
[355117569,1740918186318,-2400.58,0.000443,36]
[355117570,1740918186346,-2400.58,0.000443,36]
[355117571,1740918186371,-777.52,0.00044521,30]
[355117572,1740918186395,-777.52,0.00044521,30]
[355117573,1740918186418,-777.52,0.00044521,30]
[355117574,1740918186442,-777.52,0.00044521,30]
[355117575,1740918186466,-777.52,0.00044521,30]
[355117576,1740918186491,-777.52,0.00044521,30]
[355117577,1740918186516,-777.52,0.00044521,30]
[355117578,1740918186540,-975.39,0.00044521,30]
[355117579,1740918186564,-988.87,0.00044658,30]
[355117580,1740918186588,-440.1,0.00044658,30]
[355117581,1740918186611,-440.1,0.00044658,30]
[355117582,1740918186635,-440.1,0.00044658,30]
[355117583,1740918186658,-440.1,0.00044658,30]
[355117584,1740918186681,-255.23,0.00044658,30]
[355117585,1740918186704,-1108.835256,0.00044738,120]
[355117586,1740918186728,-5000.0,0.00044987,120]
[355117587,1740918186752,-100000.0,0.00045,45]
[355117588,1740918186775,-933.36878721,0.00045,120]
[355117589,1740918186798,-3869.60669108,0.00045,120]
[355117590,1740918186820,-1042.0,0.00045,120]
[355117591,1740918186843,-980.42011959,0.00045,60]
[355117592,1740918186872,-899.99999907,0.00045,46]
[355117593,1740918186897,-158.0,0.00045,85]
[355117594,1740918186922,-1000.0,0.00045,120]
[355117595,1740918186949,-151.0,0.00045,120]
[355117596,1740918186973,-151.0,0.00045,120]
[355117597,1740918186997,-3793.52055973,0.00045,120]
[355117598,1740918187020,-176.99380884,0.00045,68]
[355117599,1740918187045,-30000.0,0.00045,120]
[355117600,1740918187070,-150.0,0.00045158,120]
[355117601,1740918187094,-500.0,0.000452,120]
[355117602,1740918187117,-174.0,0.00045308,90]
[355117603,1740918187141,-201.0,0.0004547,30]
[355117604,1740918187165,-989.13,0.00045479,30]
[355117605,1740918187188,-989.13,0.00045479,30]
[355117606,1740918187212,-989.13,0.00045479,30]
[355117607,1740918187236,-989.13,0.00045479,30]
[355117608,1740918187259,-839.29887981,0.000455,120]
[355117609,1740918187284,-320.60325663,0.000457,120]
[355117610,1740918187310,-100000.0,0.00046,46]
[355117611,1740918187334,-5000.0,0.00046,120]
[355117612,1740918187358,-300.0,0.00046,120]
[355117613,1740918187382,-1478.9,0.00046,120]
[355117614,1740918187405,-1000.0,0.00046,30]
[355117615,1740918187429,-3049.50014941,0.00046,30]
[355117616,1740918187453,-814.64265505,0.00046,30]
[355117617,1740918187476,-2000.0,0.00046,120]
[355117618,1740918187499,-2407.82620091,0.00046,120]
[355117619,1740918187523,-778.3152577,0.00046,120]
[355117620,1740918187548,-5068.8,0.00046,117]
[355117621,1740918187573,-989.13,0.00046301,30]
[355117622,1740918187598,-989.13,0.00046301,30]
[355117623,1740918187622,-989.13,0.00046301,30]
[355117624,1740918187646,-989.13,0.00046301,30]
[355117625,1740918187671,-989.13,0.00046301,30]
[355117626,1740918187811,-989.13,0.00046301,30]
[355117627,1740918187836,-988.87,0.00046301,30]
[355117628,1740918187862,-151.0,0.00046329,120]
[355117629,1740918187886,-777.52,0.00046438,30]
[355117630,1740918187911,-777.52,0.00046438,30]
[355117631,1740918187937,-777.52,0.00046438,30]
[355117632,1740918187962,-777.52,0.00046438,30]
[355117633,1740918187985,-201.0,0.0004681,30]
[355117634,1740918188011,-100000.0,0.00047,47]
[355117635,1740918188035,-1000.0,0.00047,90]
[355117636,1740918188059,-1000.0,0.00047,120]
[355117637,1740918188085,-1000.0,0.00047,120]
[355117638,1740918188110,-989.13,0.00047123,30]
[355117639,1740918188135,-989.13,0.00047123,30]
[355117640,1740918188159,-941.75,0.000474,120]
[355117641,1740918188183,-217.27897457,0.000475,120]
[355117642,1740918188207,-1000.0,0.000475,50]
[355117643,1740918188232,-5019.0,0.0004756,30]
[355117644,1740918188257,-5000.0,0.0004756,30]
[355117645,1740918188281,-151.0,0.00047644,120]
[355117646,1740918188308,-2000.0,0.000477,120]
[355117647,1740918188333,-2000.0,0.000477,120]
[355117648,1740918188358,-315.0,0.000477,120]
[355117649,1740918188383,-344.44,0.00047945,30]
[355117650,1740918188408,-5000.0,0.00047986,30]
[355117651,1740918188434,-100000.0,0.00048,48]
[355117652,1740918188458,-5222.43578347,0.00048,120]
[355117653,1740918188483,-650.0,0.00048,120]
[355117654,1740918188508,-300.0,0.00048,120]
[355117655,1740918188533,-1000.0,0.00048,120]
[355117656,1740918188557,-350.0,0.00048,30]
[355117657,1740918188582,-1307.0,0.00048,120]
[355117658,1740918188606,-2407.82620092,0.00048,120]
[355117659,1740918188630,-778.31525771,0.00048,120]
[355117660,1740918188654,-1364.1794617,0.00048006,30]
[355117661,1740918188678,-150.46,0.00048133,120]
[355117662,1740918188702,-201.0,0.0004816,30]
[355117663,1740918188728,-150.0,0.00048354,120]
[355117664,1740918188752,-50000.0,0.000485,120]
[355117665,1740918188776,-140056.0,0.000486,120]
[355117666,1740918188800,-5000.0,0.0004863,30]
[355117667,1740918188825,-500.0,0.00048767,30]
[355117668,1740918188849,-151.0,0.00048767,120]
[355117669,1740918188876,-344.44,0.00048767,30]
[355117670,1740918188901,-150.0,0.00048767,30]
[355117671,1740918188925,-150.0,0.00048767,30]
[355117672,1740918188950,-150.0,0.00048767,30]
[355117673,1740918188974,-300.0,0.00048767,30]
[355117674,1740918188998,-4642.9259273,0.000488,120]
[355117675,1740918189022,-559.44,0.000488,120]
[355117676,1740918189046,-787.95484182,0.000488,120]
[355117677,1740918189070,-4875.32786129,0.000488,120]
[355117678,1740918189094,-397.27488283,0.000488,120]
[355117679,1740918189117,-203.13088648,0.0004888,120]
[355117680,1740918189142,-228.11452106,0.000489,120]
[355117681,1740918189166,-1167.08912482,0.000489,120]
[355117682,1740918189191,-151.0,0.00048959,120]
[355117683,1740918189216,-100000.0,0.00049,49]
[355117684,1740918189241,-752.95205566,0.00049,120]
[355117685,1740918189265,-4416.73993823,0.00049,120]
[355117686,1740918189290,-968.5516521,0.00049,50]
[355117687,1740918189314,-1000.0,0.00049,120]
[355117688,1740918189338,-751.42247808,0.00049,30]
[355117689,1740918189362,-10000.0,0.00049,120]
[355117690,1740918189388,-5314.86731749,0.00049,120]
[355117691,1740918189412,-889.47375299,0.00049004,120]
[355117692,1740918189437,-500.0,0.00049041,30]
[355117693,1740918189460,-236.24352356,0.00049224,45]
[355117694,1740918189484,-1888.79637014,0.000493,120]
[355117695,1740918189508,-181.28128967,0.00049315,120]
[355117696,1740918189534,-2000.0,0.00049315,120]
[355117697,1740918189558,-500.0,0.00049315,31]
[355117698,1740918189582,-500.0,0.00049315,60]
[355117699,1740918189606,-150.0,0.00049315,120]
[355117700,1740918189631,-641997.81558599,0.000494,120]
[355117701,1740918189654,-25000.0,0.000494,120]
[355117702,1740918189678,-375.0,0.000494,120]
[355117703,1740918189703,-350.0,0.000494,120]
[355117704,1740918189728,-150.0,0.00049438,120]
[355117705,1740918189752,-218.72705648,0.000495,120]
[355117706,1740918189776,-201.0,0.000495,30]
[355117707,1740918189800,-500.0,0.00049589,60]
[355117708,1740918189825,-2000.0,0.00049619,120]
[355117709,1740918189850,-5000.0,0.0004968,30]
[355117710,1740918189882,-2400.58,0.000497,45]
[355117711,1740918189910,-2400.58,0.000497,45]
[355117712,1740918189937,-2400.58,0.000497,45]
[355117713,1740918189963,-2400.58,0.000497,45]
[355117714,1740918189992,-2400.58,0.000497,45]
[355117715,1740918190018,-2400.58,0.000497,45]
[355117716,1740918190046,-2400.58,0.000497,45]
[355117717,1740918190072,-2400.58,0.000497,45]
[355117718,1740918190098,-2400.58,0.000497,45]
[355117719,1740918190124,-2400.58,0.000497,45]
[355117720,1740918190151,-2400.58,0.000497,45]
[355117721,1740918190179,-2400.58,0.000497,45]
[355117722,1740918190206,-2400.58,0.000497,45]
[355117723,1740918190234,-2400.58,0.000497,45]
[355117724,1740918190261,-2400.58,0.000497,45]
[355117725,1740918190289,-2400.58,0.000497,45]
[355117726,1740918190316,-2400.58,0.000497,45]
[355117727,1740918190344,-2400.58,0.000497,45]
[355117728,1740918190371,-2400.58,0.000497,45]
[355117729,1740918190398,-2400.58,0.000497,45]
[355117730,1740918190561,-2400.58,0.000497,45]
[355117731,1740918190589,-2400.58,0.000497,45]
[355117732,1740918190616,-2400.58,0.000497,45]
[355117733,1740918190642,-2400.58,0.000497,45]
[355117734,1740918190666,-229.10248409,0.000498,30]
[355117735,1740918190691,-500.0,0.00049863,60]
[355117736,1740918190715,-5000.0,0.0004987,120]
[355117737,1740918190738,-2533.16638204,0.000499,120]
[355117738,1740918190763,-2000.0,0.00049924,120]
[355117739,1740918190790,-100000.0,0.0005,48]
[355117740,1740918190816,-1000.0,0.0005,120]
[355117741,1740918190840,-166.56140021,0.0005,33]
[355117742,1740918190866,-307.07906682,0.0005,30]
[355117743,1740918190890,-1664.1144128,0.0005,120]
[355117744,1740918190916,-500.0,0.0005,120]
[355117745,1740918190943,-5624.52239332,0.0005,120]
[355117746,1740918190968,-46155.13921604,0.0005,120]
[355117747,1740918190992,-1000.0,0.0005,120]
[355117748,1740918191016,-1215.42,0.0005,120]
[355117749,1740918191042,-900.0,0.0005,51]
[355117750,1740918191069,-500.0,0.0005,120]
[355117751,1740918191094,-1613.2079,0.0005,120]
[355117752,1740918191119,-85688.78028887,0.0005,120]
[355117753,1740918191144,-1709.60294906,0.0005,120]
[355117754,1740918191169,-4341.18666063,0.0005,120]
[355117755,1740918191193,-2125.48468961,0.0005,120]
[355117756,1740918191218,-694.02522647,0.0005,120]
[355117757,1740918191242,-2000.0,0.0005,120]
[355117758,1740918191266,-262.64083628,0.0005,120]
[355117759,1740918191292,-1000.0,0.0005,120]
[355117760,1740918191316,-63706.0,0.0005,120]
[355117761,1740918191341,-200.0,0.0005,120]
[355117762,1740918191366,-500.0,0.00050137,60]
[355117763,1740918191390,-2000.0,0.00050228,120]
[355117764,1740918191415,-151.0,0.00050274,120]
[355117765,1740918191439,-500.0,0.00050411,60]
[355117766,1740918191463,-344.5,0.00050411,30]
[355117767,1740918191487,-344.5,0.00050411,30]
[355117768,1740918191512,-344.44,0.00050411,30]
[355117769,1740918191537,-2828.0641109,0.000505,120]
[355117770,1740918191561,-200.0,0.000505,120]
[355117771,1740918191587,-5491.2,0.000505,117]
[355117772,1740918191612,-2000.0,0.00050533,120]
[355117773,1740918191637,-1313.31,0.00050547,120]
[355117774,1740918191662,-5551.0,0.000506,120]
[355117775,1740918191687,-500.0,0.00050685,60]
[355117776,1740918191712,-150.0,0.00050833,120]
[355117777,1740918191737,-2000.0,0.00050837,120]
[355117778,1740918191761,-201.0,0.0005085,30]
[355117779,1740918191786,-524.0,0.00050882,120]
[355117780,1740918191813,-500.0,0.00050959,60]
[355117781,1740918191839,-100000.0,0.00051,50]
[355117782,1740918191865,-900.0,0.00051,52]
[355117783,1740918191890,-291.17932526,0.00051,120]
[355117784,1740918191916,-1000.0,0.00051,120]
[355117785,1740918191942,-1000000.0,0.00051,120]
[355117786,1740918191966,-200.0,0.00051,120]
[355117787,1740918191990,-5551.0,0.000511,120]
[355117788,1740918192015,-2000.0,0.00051142,120]
[355117789,1740918192040,-150.0,0.00051198,30]
[355117790,1740918192065,-160.38142439,0.00051198,30]
[355117791,1740918192090,-150.0,0.00051198,30]
[355117792,1740918192114,-3475.45922525,0.00051198,30]
[355117793,1740918192139,-150.0,0.00051198,30]
[355117794,1740918192163,-564.62619774,0.00051198,30]
[355117795,1740918192191,-150.0,0.00051198,30]
[355117796,1740918192215,-315.17651056,0.00051198,30]
[355117797,1740918192240,-919.61005473,0.000512,120]
[355117798,1740918192265,-500.0,0.00051233,60]
[355117799,1740918192290,-694.17,0.00051233,30]
[355117800,1740918192315,-2000.0,0.00051446,120]
[355117801,1740918192339,-200.0,0.000515,120]
[355117802,1740918192365,-969.28,0.00051507,60]
[355117803,1740918192390,-151.0,0.00051589,120]
[355117804,1740918192414,-2000.0,0.0005175,120]
[355117805,1740918192439,-173.0,0.00051781,120]
[355117806,1740918192465,-3000.0,0.00051868,120]
[355117807,1740918192489,-2100.0,0.00051868,120]
[355117808,1740918192514,-1900.0,0.00051868,120]
[355117809,1740918192540,-13561.21357165,0.00051899,30]
[355117810,1740918192566,-100000.0,0.00052,52]
[355117811,1740918192591,-550.0,0.00052,120]
[355117812,1740918192615,-900.0,0.00052,53]
[355117813,1740918192640,-500.0,0.00052,120]
[355117814,1740918192665,-2000.0,0.00052,120]
[355117815,1740918192690,-1000000.0,0.00052,120]
[355117816,1740918192714,-200.0,0.00052,120]
[355117817,1740918192740,-4211.42,0.00052054,120]
[355117818,1740918192766,-500.0,0.00052054,120]
[355117819,1740918192792,-4790.4,0.00052054,120]
[355117820,1740918192817,-500.0,0.00052054,120]
[355117821,1740918192842,-2000.0,0.00052055,120]
[355117822,1740918192868,-3000.0,0.00052142,120]
[355117823,1740918192892,-2100.0,0.00052142,120]
[355117824,1740918192918,-1900.0,0.00052142,120]
[355117825,1740918192943,-201.0,0.0005219,30]
[355117826,1740918192968,-4211.42,0.00052328,120]
[355117827,1740918192993,-500.0,0.00052328,120]
[355117828,1740918193017,-4790.4,0.00052328,120]
[355117829,1740918193041,-2000.0,0.00052359,120]
[355117830,1740918193066,-3000.0,0.00052416,120]
[355117831,1740918193092,-2100.0,0.00052416,120]
[355117832,1740918193118,-1900.0,0.00052416,120]
[355117833,1740918193273,-151.0,0.00052521,120]
[355117834,1740918193304,-4211.42,0.00052602,120]
[355117835,1740918193332,-500.0,0.00052602,120]
[355117836,1740918193359,-4790.4,0.00052602,120]
[355117837,1740918193385,-1313.31,0.00052602,120]
[355117838,1740918193412,-2000.0,0.00052664,120]
[355117839,1740918193438,-3000.0,0.0005269,120]
[355117840,1740918193463,-2100.0,0.0005269,120]
[355117841,1740918193488,-1900.0,0.0005269,120]
[355117842,1740918193514,-5000.0,0.0005278,30]
[355117843,1740918193542,-150.0,0.0005286,120]
[355117844,1740918193569,-4211.42,0.00052876,120]
[355117845,1740918193596,-510.33962994,0.00052876,120]
[355117846,1740918193621,-4790.4,0.00052876,120]
[355117847,1740918193646,-1811.95,0.000529,60]
[355117848,1740918193671,-151.0,0.00052904,120]
[355117849,1740918193696,-3000.0,0.00052964,120]
[355117850,1740918193722,-2000.0,0.00052968,120]
[355117851,1740918193746,-1000.0,0.00052987,120]
[355117852,1740918193772,-100000.0,0.00053,53]
[355117853,1740918193798,-900.0,0.00053,54]
[355117854,1740918193823,-5217.08297036,0.00053,120]
[355117855,1740918193851,-1000000.0,0.00053,120]
[355117856,1740918193880,-150.46,0.00053059,120]
[355117857,1740918193906,-150.0,0.00053135,120]
[355117858,1740918193933,-4211.42,0.0005315,120]
[355117859,1740918193959,-4790.4,0.0005315,120]
[355117860,1740918193985,-3000.0,0.00053238,120]
[355117861,1740918194010,-2100.0,0.00053238,120]
[355117862,1740918194035,-1900.0,0.00053238,120]
[355117863,1740918194062,-2000.0,0.00053272,120]
[355117864,1740918194087,-153.049,0.00053286,120]
[355117865,1740918194112,-153.05,0.00053286,120]
[355117866,1740918194137,-153.05,0.00053286,120]
[355117867,1740918194162,-153.05,0.00053286,120]
[355117868,1740918194187,-153.05,0.00053286,120]
[355117869,1740918194214,-4211.42,0.00053424,120]
[355117870,1740918194239,-4790.4,0.00053424,120]
[355117871,1740918194265,-3000.0,0.00053512,120]
[355117872,1740918194289,-201.0,0.0005354,30]
[355117873,1740918194314,-2000.0,0.00053577,120]
[355117874,1740918194341,-4211.42,0.00053698,120]
[355117875,1740918194366,-4790.4,0.00053698,120]
[355117876,1740918194391,-152.38,0.00053699,30]
[355117877,1740918194416,-171.0,0.000537,120]
[355117878,1740918194442,-3000.0,0.00053786,120]
[355117879,1740918194468,-2100.0,0.00053786,120]
[355117880,1740918194493,-1900.0,0.00053786,120]
[355117881,1740918194518,-177.97205616,0.00053812,45]
[355117882,1740918194544,-868.0,0.00053879,120]
[355117883,1740918194569,-868.0,0.00053879,120]
[355117884,1740918194594,-868.0,0.00053879,120]
[355117885,1740918194620,-868.0,0.00053879,120]
[355117886,1740918194645,-868.0,0.00053879,120]
[355117887,1740918194670,-868.0,0.00053879,120]
[355117888,1740918194694,-868.0,0.00053879,120]
[355117889,1740918194719,-868.0,0.00053879,120]
[355117890,1740918194744,-868.0,0.00053879,120]
[355117891,1740918194770,-2000.0,0.00053881,120]
[355117892,1740918194795,-736.52303053,0.00053891,120]
[355117893,1740918194819,-2016.01175525,0.000539,30]
[355117894,1740918194843,-500.0,0.00053917,60]
[355117895,1740918194869,-4211.42,0.00053972,120]
[355117896,1740918194893,-4790.4,0.00053972,120]
[355117897,1740918194920,-100000.0,0.00054,54]
[355117898,1740918194948,-10397.68644474,0.00054,30]
[355117899,1740918194972,-5320.4,0.00054,30]
[355117900,1740918194997,-900.0,0.00054,55]
[355117901,1740918195023,-641.74191919,0.00054,30]
[355117902,1740918195047,-182416.72843902,0.00054,30]
[355117903,1740918199360,-5000000.0,0.00032265,45]
[355117904,1740918204239,-5000000.0,0.00032265,45]
[355117905,1740918207598,-5000000.0,0.00032265,45]
[355117906,1740918232371,-15000000.0,0.00032265,45]
[355117907,1740918236345,-15000000.0,0.00032265,45]
[355117908,1740918240460,-15000000.0,0.00032265,45]
[355117909,1740918243950,-15000000.0,0.00032265,45]
[355117911,1740918308973,150.0,0.00015,2]
[355117912,1740918309001,10000.0,0.00015,2]
[355117913,1740918309028,10000.0,0.00015,2]
[355117914,1740918309054,10000.0,0.00015,2]
[355117915,1740918309080,10000.0,0.00015,2]
[355117916,1740918309106,10000.0,0.00015,2]
[355117917,1740918309130,10000.0,0.00015,2]
[355117919,1740918333617,250.0,0.00013,2]
[355117920,1740918340844,-10000000.0,0.00032265,45]
[355117921,1740918345506,-3727628.41715718,0.00032265,45]
[355117922,1740918345534,-6272371.58284282,0.00032265,45]
[355117926,1740918383232,-300.0,0.00014999,2]
[355117927,1740918383258,-1304229.7,0.00015,2]
[355117930,1740918400643,-308.8615006,0.000149,2]
[355117931,1740918400672,-570.87822641,0.00014999,2]
[355117932,1740918400702,-264.26027299,0.00015,2]
[355117937,1740918436376,-10000000.0,0.00032265,45]
[355117938,1740918440854,-10000000.0,0.00032265,45]
[355117939,1740918444874,-10000000.0,0.00032265,45]
[355117945,1740918478440,-503.61280804,0.0002302,30]
[355117946,1740918489492,209.25,0.0002,10]
[355118031,1740918602096,-414.75793774,0.00014873,2]
[355118032,1740918602126,-1221.91453826,0.000149,2]
[355118033,1740918602157,-1845.91699579,0.000149,2]
[355118034,1740918626365,-294.27858786,0.000149,2]
[355118035,1740918626387,-308.8615006,0.000149,2]
[355118040,1740918632510,-360.4367498,0.00014973,2]
[355118041,1740918632682,-139.5632502,0.00014973,2]
[355118042,1740918632692,-500.0,0.00014973,2]
[355118043,1740918632702,-501.24272892,0.00014973,2]
[355118044,1740918632711,-500.0,0.00014999,2]
[355118045,1740918632721,-154.4452906,0.00014999,2]
[355118046,1740918632730,-150.0,0.00014999,2]
[355118047,1740918632741,-49704.33021676,0.00015,2]
[355118048,1740918638279,-25860.50699999,0.00015,2]
[355118049,1740918638337,-6112.93541835,0.00015,2]
[355118050,1740918638395,-1042.82955653,0.00015,2]
[355118108,1740918643461,-95191.30000021,0.00015,2]
[355118127,1740918646485,-43057.0,0.00015,2]
[355118128,1740918646654,-5555.0,0.00015,2]
[355118130,1740918666260,-197.38349905,0.00014973,2]
[355118131,1740918666300,-8969.47641249,0.00015,2]
[355118173,1740919109504,157.48377152,0.000147,2]
[355118174,1740919258273,-2113.99202408,0.000149,2]
[355118175,1740919258297,-150.0,0.00014949,2]
[355118176,1740919258321,-500.0,0.00014973,2]
[355118177,1740919258345,-1942.14902307,0.0001499,2]
[355118178,1740919258370,-174.89850909,0.00014999,2]
[355118179,1740919258396,-500.0,0.00014999,2]
[355118180,1740919258421,-500.0,0.00014999,2]
[355118181,1740919258447,-640.77692225,0.00014999,2]
[355118182,1740919258475,-632968.22491873,0.00015,2]
[355118183,1740919258499,-300.0,0.00015,2]
[355118184,1740919258524,-59318.39018,0.00015,2]
[355118185,1740919300670,-500.0,0.00014999,2]
[355118186,1740919300694,-525.475,0.00014999,2]
[355118187,1740919503089,310.95946832,0.0002,120]
[355118188,1740919524975,5314.86731749,0.0002,3]
[355118205,1740919803127,4354.0,0.0002,120]
[355118211,1740919831659,-804.92353999,0.00016109,2]
[355118212,1740919831822,-5007.38272694,0.00016109,2]
[355118213,1740919831989,-2779.63621602,0.00016109,2]
[355118311,1740919839839,-1814.47508105,0.00016109,2]
[355118313,1740919839850,-9201.00924632,0.0001619,2]
[355118315,1740919839861,-339.2549016,0.0001619,2]
[355118317,1740919839870,-166.66666668,0.0001629,2]
[355118319,1740919839880,-150.0,0.0001639,2]
[355118320,1740919839890,-150.0,0.0001639,2]
[355118321,1740919839900,-1533.12332435,0.000168,2]
[355118322,1740919839910,-1802.40128165,0.00016818,2]
[355118323,1740919839920,-166.66666666,0.00016918,2]
[355118324,1740919839930,-178.58,0.0001706,2]
[355118325,1740919839939,-166.66666666,0.00017545,2]
[355118326,1740919839949,-450.0,0.00017809,2]
[355118327,1740919839959,-450.0,0.00017919,2]
[355118328,1740919839968,-450.0,0.00017919,2]
[355118329,1740919839977,-714.72664845,0.00018,2]
[355118330,1740919839988,-516.84615253,0.00018307,2]
[355118331,1740919840002,-6653.86416419,0.00018307,2]
[355118332,1740919840012,-1802.40128163,0.00018415,2]
[355118333,1740919840022,-8243.99935687,0.0001981,2]
[355118334,1740919840037,-41720.79304332,0.0001981,2]
[355118343,1740919842740,-1942.91492784,0.0001981,2]
[355118349,1740919845854,-26390.34108441,0.0001981,2]
[355118350,1740919845864,-178.58,0.00019903,2]
[355118351,1740919845874,-1802.40128163,0.00020012,2]
[355118352,1740919845884,-710.27,0.00020111,2]
[355118353,1740919845894,-500.0,0.00020125,2]
[355118354,1740919845904,-500.0,0.00020125,2]
[355118355,1740919845914,-500.0,0.00020125,2]
[355118356,1740919845924,-500.0,0.00020125,2]
[355118357,1740919845934,-3125.7119386,0.000209,2]
[355118358,1740919845944,-1000.0,0.00021307,2]
[355118359,1740919845954,-150.0,0.00021819,7]
[355118360,1740919845964,-6055.09,0.00021877,2]
[355118361,1740919845974,-5502.64,0.00021889,2]
[355118362,1740919845983,-5106.8569499,0.00022,120]
[355118363,1740919845993,-151.56,0.00022058,2]
[355118364,1740919846002,-250.0,0.00022148,2]
[355118365,1740919846012,-3125.71193846,0.0002221,3]
[355118366,1740919846021,-300.38,0.00022232,2]
[355118367,1740919846031,-250.0,0.00022282,2]
[355118368,1740919846041,-300.38,0.00022349,2]
[355118369,1740919846052,-710.27,0.00022375,2]
[355118370,1740919846062,-300.38,0.00022466,2]
[355118371,1740919846071,-300.38,0.00022583,2]
[355118372,1740919846081,-300.38,0.000227,2]
[355118373,1740919846091,-178.58,0.00022747,2]
[355118374,1740919846101,-300.38,0.00022817,2]
[355118375,1740919846111,-7920.94,0.00022846,2]
[355118376,1740919846120,-150.49,0.0002288,30]
[355118377,1740919846130,-300.38,0.00022934,2]
[355118378,1740919846139,-500.0,0.0002302,30]
[355118379,1740919846149,-500.0,0.0002302,30]
[355118380,1740919846158,-500.0,0.0002302,30]
[355118381,1740919846168,-500.0,0.0002302,30]
[355118382,1740919846177,-500.0,0.0002302,30]
[355118383,1740919846187,-300.38,0.00023051,2]
[355118384,1740919846197,-300.38,0.00023168,2]
[355118385,1740919846206,-23900.0,0.00023243,2]
[355118386,1740919846216,-300.38,0.00023285,2]
[355118387,1740919846225,-300.38,0.00023402,2]
[355118388,1740919846235,-300.38,0.00023519,2]
[355118389,1740919846395,-3125.71193846,0.00023521,3]
[355118390,1740919846408,-286.13561037,0.00023631,2]
[355118391,1740919846418,-300.38,0.00023636,2]
[355118392,1740919846431,-300.38,0.00023753,2]
[355118393,1740919846441,-300.38,0.0002387,2]
[355118394,1740919846451,-1000.0,0.00023971,2]
[355118395,1740919846460,-300.38,0.00023987,2]
[355118396,1740919846471,-300.38,0.00024104,2]
[355118397,1740919846480,-300.38,0.00024221,2]
[355118398,1740919846490,-300.38,0.00024338,2]
[355118399,1740919846501,-329.02160636,0.00024397,2]
[355118400,1740919846511,-300.38,0.00024455,2]
[355118401,1740919846521,-710.27,0.00024639,2]
[355118402,1740919846531,-442.43414705,0.00024657,2]
[355118403,1740919846541,-634.49035973,0.00024657,2]
[355118404,1740919846552,-1172.42,0.00024657,2]
[355118405,1740919846561,-734.91,0.00024657,2]
[355118406,1740919846571,-500.0,0.00024657,2]
[355118407,1740919846580,-500.0,0.00024657,2]
[355118408,1740919846591,-500.0,0.00024657,2]
[355118409,1740919846601,-500.0,0.00024657,2]
[355118410,1740919846611,-500.0,0.00024657,2]
[355118411,1740919846620,-1000.0,0.00024657,120]
[355118412,1740919846630,-5000.0,0.00024657,2]
[355118413,1740919846640,-500.0,0.00024657,2]
[355118414,1740919846650,-500.0,0.00024657,2]
[355118415,1740919846659,-500.0,0.00024657,2]
[355118416,1740919846669,-500.0,0.00024657,2]
[355118417,1740919846679,-500.0,0.00024657,2]
[355118418,1740919846689,-4040.13,0.00024657,2]